bitfinex-derivatives/quotes_SOLF0:USTF0_20241012
["timestamp","ask_amount","ask_price","bid_price","bid_amount"]
[1728727301680,8.56502,145.91,145.88,5.29241813]
[1728727301877,8.56502,145.91,145.87,3.4284]
[1728727302077,8.56502,145.91,145.88,5.29238128]
[1728727302287,11.99262,145.91,145.87,3.4284]
[1728727302587,11.99262,145.91,145.88,5.29129639]
[1728727302781,0.12502,145.91,145.87,3.4284]
[1728727302982,8.44,145.9,145.88,5.29132483]
[1728727303182,8.44,145.89,145.85,8.44]
[1728727303378,8.44,145.89,145.86,13.75671227]
[1728727303585,8.44,145.89,145.86,3.49011232]
[1728727303892,8.44,145.89,145.87,5.29146728]
[1728727304188,8.44,145.89,145.88,5.29146728]
[1728727304487,8.44,145.89,145.86,3.4287]
[1728727304787,8.44,145.89,145.87,5.29069163]
[1728727304988,8.44,145.89,145.86,3.4287]
[1728727305184,8.44,145.89,145.87,5.29074651]
[1728727305382,8.44,145.89,145.86,6.84920894]
[1728727305584,11.868,145.9,145.87,5.29001323]
[1728727305785,11.868,145.9,145.86,6.84920894]
[1728727306088,11.868,145.9,145.87,5.29001746]
[1728727306289,3.428,145.9,145.86,6.84920894]
[1728727306490,8.44,145.89,145.87,5.28904854]
[1728727306689,8.44,145.89,145.86,6.84920894]
[1728727307087,8.44,145.89,145.87,5.28904853]
[1728727307290,8.44,145.89,145.86,6.84920894]
[1728727307590,8.44,145.89,145.87,5.28894673]
[1728727307793,8.44,145.89,145.86,6.84920894]
[1728727307987,8.44,145.89,145.87,5.28853767]
[1728727308186,8.44,145.89,145.86,6.84920894]
[1728727308381,8.44,145.89,145.87,5.28824013]
[1728727308586,8.44,145.89,145.86,6.84920894]
[1728727308788,8.44,145.89,145.87,5.28789044]
[1728727308986,8.44,145.89,145.86,6.84920894]
[1728727309196,8.44,145.89,145.87,5.28789037]
[1728727309395,0.12502,145.91,145.88,3.4283]
[1728727309596,8.56502,145.91,145.87,8.44]
[1728727309795,8.56502,145.91,145.86,11.86050894]
[1728727309995,8.44,145.9,145.87,8.7156096]
[1728727310197,8.44,145.9,145.87,3.4284]
[1728727310598,8.44,145.9,145.87,6.80947846]
[1728727311798,11.8679,145.9,145.87,3.38107846]
[1728727313387,11.8679,145.9,145.87,6.80957846]
[1728727313591,11.8679,145.9,145.87,3.4285]
[1728727314297,11.8679,145.9,145.87,6.78661304]
[1728727315098,11.8679,145.9,145.87,3.4285]
[1728727315398,11.8679,145.9,145.87,6.85312391]
[1728727315802,11.8679,145.9,145.87,3.4285]
[1728727324808,11.8679,145.9,145.86,6.93174153]
[1728727325104,11.8679,145.9,145.87,5.28190943]
[1728727325304,11.8679,145.9,145.86,3.4286]
[1728727325500,11.8679,145.9,145.87,5.28186623]
[1728727325710,11.8679,145.9,145.87,3.5113705]
[1728727338517,3.55262,145.91,145.88,3.4282]
[1728727338723,8.56502,145.91,145.87,3.5113705]
[1728727338919,8.44,145.89,145.84,1.372]
[1728727339221,8.44,145.89,145.85,13.72388708]
[1728727339422,8.44,145.88,145.86,13.72388708]
[1728727339721,8.44,145.88,145.87,5.27904697]
[1728727340116,8.44,145.88,145.84,9.812]
[1728727340320,8.44,145.88,145.85,8.44691249]
[1728727340516,11.8683,145.88,145.86,13.72648543]
[1728727340723,11.8683,145.88,145.87,5.27957294]
[1728727341222,11.8683,145.88,145.83,1.3201]
[1728727341223,3.4288,145.86,145.83,1.3201]
[1728727341422,8.44,145.86,145.84,5.28282904]
[1728727341622,8.44,145.86,145.85,5.28282904]
[1728727342022,11.8688,145.86,145.83,8.14645065]
[1728727342420,11.8688,145.86,145.83,6.82635065]
[1728727343226,11.8688,145.86,145.84,5.1525425]
[1728727343426,11.8688,145.86,145.83,6.82635065]
[1728727343726,11.8688,145.86,145.84,5.15258775]
[1728727343925,11.8688,145.86,145.83,6.82635065]
[1728727344223,11.8688,145.86,145.84,5.15245931]
[1728727344425,11.8688,145.86,145.83,6.82635065]
[1728727344623,11.8688,145.86,145.84,5.15342685]
[1728727344923,11.8688,145.86,145.83,6.82635065]
[1728727345124,11.8688,145.86,145.84,5.15353421]
[1728727345313,11.8688,145.86,145.83,6.82635065]
[1728727345517,11.8688,145.86,145.84,5.15382449]
[1728727345718,11.8688,145.86,145.85,5.15382449]
[1728727346119,8.44,145.86,145.82,3.4296]
[1728727346314,11.8691,145.85,145.83,5.15502104]
[1728727346519,11.8691,145.85,145.84,5.15502104]
[1728727347124,11.8691,145.85,145.82,3.4296]
[1728727347324,11.8691,145.85,145.83,5.15677579]
[1728727347529,11.8691,145.85,145.82,3.4296]
[1728727347830,11.8691,145.85,145.83,5.15830687]
[1728727348022,11.8691,145.85,145.82,3.4296]
[1728727348222,11.8691,145.85,145.83,5.1587007]
[1728727348424,11.8691,145.85,145.82,3.4296]
[1728727348623,11.8691,145.85,145.83,5.15980261]
[1728727348826,11.8691,145.85,145.82,3.4296]
[1728727349022,11.8691,145.85,145.83,5.15997397]
[1728727349226,11.8691,145.85,145.82,3.4296]
[1728727349426,3.4292,145.84,145.83,5.16136444]
[1728727350229,3.4292,145.84,145.81,3.4299]
[1728727350427,3.4292,145.84,145.82,5.16127131]
[1728727350622,3.4292,145.84,145.81,3.4299]
[1728727350928,3.4292,145.84,145.82,5.16256162]
[1728727351130,3.4292,145.84,145.83,5.16256162]
[1728727352424,8.44,145.85,145.83,5.16256162]
[1728727352625,8.44,145.85,145.84,5.16256162]
[1728727352626,11.8691,145.85,145.84,5.16256162]
[1728727353729,8.44,145.85,145.8,6.92719969]
[1728727353931,3.35216766,145.88,145.8,6.92719969]
[1728727353932,11.8695,145.83,145.8,6.92719969]
[1728727354123,11.8695,145.83,145.81,5.16908194]
[1728727354324,11.8695,145.83,145.82,5.16908194]
[1728727357333,8.44,145.83,145.82,5.17496851]
[1728727357527,8.44,145.83,145.79,0.12502]
[1728727357728,8.44,145.8,145.79,0.12502]
[1728727357930,8.44,145.8,145.79,5.30396656]
[1728727358432,11.8702,145.8,145.79,5.30396656]
[1728727363133,11.8702,145.8,145.79,0.12502]
[1728727383549,3.4311,145.76,145.73,3.55672]
[1728727383844,8.44,145.75,145.74,5.15963241]
[1728727384238,8.44,145.75,145.73,3.55672]
[1728727388953,8.44,145.75,145.73,0.12502]
[1728727389142,8.44,145.74,145.73,0.12502]
[1728727390456,11.8716,145.74,145.73,0.12502]
[1728727411769,8.44,145.74,145.73,0.12502]
[1728727415776,11.8716,145.74,145.73,0.12502]
[1728727419283,11.8716,145.74,145.73,5.29573018]
[1728727421480,11.8716,145.74,145.73,0.12502]
[1728727424885,11.8716,145.74,145.73,5.30270631]
[1728727428886,11.8716,145.74,145.73,0.12502]
[1728727429086,11.8716,145.74,145.73,5.30444955]
[1728727429388,11.8716,145.74,145.73,0.12502]
[1728727429582,11.8716,145.74,145.73,5.30443328]
[1728727430280,3.4316,145.74,145.73,5.30443328]
[1728727430484,11.8716,145.74,145.73,5.30443328]
[1728727432883,11.8716,145.74,145.73,0.12502]
[1728727433084,11.8716,145.74,145.73,5.30497384]
[1728727433588,11.8716,145.74,145.73,0.12502]
[1728727433787,11.8716,145.74,145.73,5.30493067]
[1728727433990,8.44,145.74,145.73,5.30493067]
[1728727434987,11.8716,145.74,145.73,5.30493067]
[1728727436387,8.44,145.75,145.73,5.30493067]
[1728727436799,4.0619,145.8,145.74,5.17991067]
[1728727436987,4.0619,145.8,145.75,5.17991067]
[1728727437291,4.0619,145.8,145.73,0.12502]
[1728727437593,4.0619,145.8,145.74,5.18162652]
[1728727437792,4.0619,145.8,145.75,5.18162652]
[1728727437985,3.4314,145.75,145.73,0.12502]
[1728727438186,8.44,145.74,145.73,0.12502]
[1728727438486,8.44,145.74,145.73,5.30727411]
[1728727439802,8.44,145.74,145.73,0.12502]
[1728727439986,8.44,145.74,145.73,5.30798986]
[1728727440290,8.44,145.74,145.73,5.30836331]
[1728727442396,8.44,145.74,145.73,0.12502]
[1728727442587,8.44,145.74,145.73,5.31300125]
[1728727443092,3.4314,145.75,145.73,5.31300125]
[1728727443293,3.4312,145.76,145.73,0.12502]
[1728727443493,8.44,145.75,145.74,5.18907886]
[1728727443892,11.8713,145.75,145.74,5.18907886]
[1728727445900,11.8713,145.75,145.73,0.12502]
[1728727446208,11.8713,145.75,145.74,5.19379025]
[1728727447407,3.4313,145.75,145.74,5.19379025]
[1728727447706,11.8713,145.75,145.74,5.19379025]
[1728727449903,11.8713,145.75,145.73,0.12502]
[1728727450206,11.8713,145.75,145.74,5.19701883]
[1728727456705,8.44,145.75,145.73,0.12502]
[1728727456911,11.8716,145.74,145.73,0.12502]
[1728727457112,11.8716,145.74,145.73,5.33067997]
[1728727460306,11.8716,145.74,145.73,0.12502]
[1728727460510,11.8716,145.74,145.73,5.33252894]
[1728727460706,11.8716,145.74,145.73,0.12502]
[1728727461012,11.8716,145.74,145.73,5.33256193]
[1728727470918,11.8716,145.74,145.73,0.12502]
[1728727471615,11.8716,145.74,145.73,5.33484315]
[1728727478328,11.8716,145.74,145.73,0.12502]
[1728727478625,11.8716,145.74,145.73,5.33470491]
[1728727481825,11.8716,145.74,145.73,5.33509094]
[1728727482031,11.8716,145.74,145.73,0.12502]
[1728727482233,11.8716,145.74,145.73,5.33511657]
[1728727485222,8.44,145.74,145.73,5.33511657]
[1728727485421,8.44,145.74,145.73,5.33452117]
[1728727489032,8.44,145.74,145.73,0.12502]
[1728727489332,8.44,145.74,145.73,5.33477443]
[1728727492728,8.44,145.74,145.73,0.12502]
[1728727492929,8.44,145.74,145.73,5.33570834]
[1728727493128,8.44,145.74,145.73,0.12502]
[1728727493325,8.44,145.74,145.73,5.33544936]
[1728727496433,8.44,145.74,145.73,0.12502]
[1728727496637,8.44,145.74,145.73,5.33596492]
[1728727500443,8.44,145.74,145.73,5.33677193]
[1728727502939,8.44,145.74,145.73,0.12502]
[1728727503139,8.44,145.74,145.73,5.33704419]
[1728727503338,8.44,145.74,145.73,0.12502]
[1728727503543,8.44,145.74,145.73,5.33703656]
[1728727505248,11.8716,145.74,145.73,5.33703656]
[1728727506536,11.8716,145.74,145.73,0.12502]
[1728727506746,11.8716,145.74,145.73,5.33785936]
[1728727510147,11.8716,145.74,145.73,0.12502]
[1728727510344,11.8716,145.74,145.73,5.33756941]
[1728727513450,11.8716,145.74,145.73,0.12502]
[1728727513653,11.8716,145.74,145.73,5.33737472]
[1728727513850,11.8716,145.74,145.73,0.12502]
[1728727514049,11.8716,145.74,145.73,5.33737472]
[1728727517051,11.8716,145.74,145.73,0.12502]
[1728727517352,11.8716,145.74,145.73,5.33738673]
[1728727520457,11.8716,145.74,145.73,0.12502]
[1728727520660,11.8716,145.74,145.73,5.33785242]
[1728727523961,11.8716,145.74,145.73,0.12502]
[1728727524463,11.8716,145.74,145.73,5.33891113]
[1728727524658,8.44,145.74,145.7,3.4324]
[1728727524867,8.44,145.71,145.7,3.4324]
[1728727528368,73.38043758,145.73,145.7,3.4324]
[1728727528567,81.82043758,145.73,145.7,3.4324]
[1728727529868,8.44,145.72,145.7,3.4324]
[1728727533271,8.44,145.71,145.7,3.4324]
[1728727536865,8.44,145.71,145.7,8.57712465]
[1728727537776,8.44,145.71,145.7,3.4324]
[1728727538076,8.44,145.71,145.7,8.57684388]
[1728727538272,8.44,145.71,145.7,5.14444388]
[1728727548283,8.44,145.71,145.69,3.4326]
[1728727548488,8.44,145.71,145.7,5.14314944]
[1728727548681,8.44,145.71,145.69,3.4326]
[1728727548886,8.44,145.71,145.7,5.14314975]
[1728727551797,8.44,145.71,145.69,3.4326]
[1728727551993,8.44,145.71,145.7,5.14253313]
[1728727555389,8.44,145.71,145.69,3.4326]
[1728727555696,8.44,145.71,145.7,5.14223015]
[1728727558793,8.44,145.71,145.69,3.4326]
[1728727559396,8.44,145.71,145.7,5.14342578]
[1728727561499,8.44,145.71,145.69,3.4326]
[1728727561699,8.44,145.71,145.7,5.14352604]
[1728727564505,73.38023758,145.73,145.7,8.57602604]
[1728727564699,8.44,145.72,145.71,5.14352604]
[1728727565800,11.872,145.72,145.71,5.14352604]
[1728727568494,11.872,145.72,145.69,3.4327]
[1728727568695,8.44,145.7,145.69,3.4327]
[1728727569092,8.44,145.7,145.69,8.57743468]
[1728727570998,73.38043758,145.73,145.7,3.4325]
[1728727571196,78.38843758,145.73,145.71,5.14473468]
[1728727571501,78.38843758,145.73,145.72,5.14473468]
[1728727572096,78.38843758,145.73,145.68,11.1666]
[1728727572401,78.38843758,145.73,145.69,5.14476635]
[1728727572598,78.38843758,145.73,145.68,11.1666]
[1728727572599,78.38843758,145.73,145.7,8.57716635]
[1728727572798,78.38843758,145.73,145.71,5.14476635]
[1728727572799,8.44,145.72,145.71,5.14476635]
[1728727579708,8.44,145.72,145.71,5.14669665]
[1728727582604,78.38843758,145.73,145.71,8.57899665]
[1728727582808,78.38843758,145.73,145.72,5.14669665]
[1728727584503,81.82023758,145.73,145.72,5.14669665]
[1728727586106,81.82023758,145.73,145.7,3.4324]
[1728727586313,8.44,145.71,145.7,3.4324]
[1728727586510,8.44,145.71,145.7,8.58120273]
[1728727590011,8.44,145.71,145.7,8.58172431]
[1728727593203,8.44,145.71,145.7,3.4324]
[1728727593409,8.44,145.71,145.7,8.5838457]
[1728727595420,8.44,145.71,145.7,3.4324]
[1728727595614,8.44,145.71,145.7,8.58430628]
[1728727596510,8.44,145.71,145.7,3.4324]
[1728727596708,8.44,145.71,145.7,8.58388154]
[1728727600112,8.44,145.71,145.7,8.58373294]
[1728727603415,8.44,145.71,145.7,3.4324]
[1728727603620,8.44,145.71,145.7,8.5833162]
[1728727605122,8.44,145.71,145.7,5.1509162]
[1728727606823,8.44,145.71,145.69,3.4327]
[1728727607016,8.44,145.71,145.7,5.15092301]
[1728727607221,81.82023758,145.73,145.7,5.15092301]
[1728727607420,81.82023758,145.73,145.71,5.15092301]
[1728727607621,81.82023758,145.73,145.72,5.15092301]
[1728727610221,81.82023758,145.73,145.7,3.4325]
[1728727610417,81.82023758,145.73,145.71,5.15107629]
[1728727610618,81.82023758,145.73,145.7,3.4325]
[1728727610822,81.82023758,145.73,145.71,5.15137334]
[1728727611124,81.82023758,145.73,145.72,5.15137334]
[1728727612727,78.38843758,145.73,145.72,8.58337334]
[1728727612918,78.38843758,145.73,145.72,5.15137334]
[1728727613624,78.38843758,145.73,145.68,11.1666]
[1728727613932,78.38843758,145.73,145.69,5.15126939]
[1728727614129,78.38843758,145.73,145.7,5.15126939]
[1728727614318,78.38843758,145.73,145.71,8.58336939]
[1728727614522,78.38843758,145.73,145.72,5.15126939]
[1728727616730,69.94843758,145.73,145.72,5.15126939]
[1728727617618,69.94843758,145.73,145.72,5.15112271]
[1728727620424,69.94843758,145.73,145.71,3.4321]
[1728727620624,69.94843758,145.73,145.72,5.15078014]
[1728727620825,69.94843758,145.73,145.71,3.4321]
[1728727621030,69.94843758,145.73,145.72,5.15078015]
[1728727621327,78.38843758,145.73,145.72,5.15078015]
[1728727624028,69.94843758,145.73,145.72,5.15078015]
[1728727624229,78.38843758,145.73,145.72,5.15078015]
[1728727626529,78.38843758,145.73,145.72,5.14854745]
[1728727628122,78.38843758,145.73,145.7,3.4324]
[1728727628326,78.38843758,145.73,145.71,5.1482024]
[1728727628532,78.38843758,145.73,145.72,5.1482024]
[1728727630233,78.38843758,145.73,145.72,5.14782537]
[1728727630429,78.38843758,145.73,145.7,3.4324]
[1728727630626,78.38843758,145.73,145.71,5.14759835]
[1728727630833,78.38843758,145.73,145.72,5.14759835]
[1728727633730,78.38843758,145.73,145.7,3.4324]
[1728727634033,78.38843758,145.73,145.71,5.14706594]
[1728727634234,78.38843758,145.73,145.72,5.14706594]
[1728727637233,78.38843758,145.73,145.7,3.4324]
[1728727637533,78.38843758,145.73,145.71,5.14073701]
[1728727637739,78.38843758,145.73,145.72,5.14073701]
[1728727641043,78.38843758,145.73,145.7,3.4324]
[1728727641338,78.38843758,145.73,145.71,5.14016103]
[1728727641541,78.38843758,145.73,145.72,5.14016103]
[1728727645038,8.44,145.73,145.72,5.14016103]
[1728727647848,8.44,145.73,145.7,3.4324]
[1728727648049,8.44,145.73,145.71,5.13903828]
[1728727648243,8.44,145.73,145.72,5.13903828]
[1728727651748,8.44,145.73,145.7,3.4324]
[1728727651953,8.44,145.73,145.71,5.13907946]
[1728727652154,8.44,145.73,145.72,5.13908755]
[1728727655554,8.44,145.73,145.7,3.4324]
[1728727655960,8.44,145.73,145.71,5.14092061]
[1728727656457,8.44,145.73,145.72,5.14092061]
[1728727659359,8.44,145.73,145.7,3.4324]
[1728727659561,8.44,145.73,145.71,5.14123781]
[1728727659762,8.44,145.73,145.72,5.14123781]
[1728727663058,8.44,145.73,145.7,3.4324]
[1728727663254,8.44,145.73,145.71,5.14168797]
[1728727663459,8.44,145.73,145.7,3.4324]
[1728727663460,8.44,145.73,145.72,5.14173441]
[1728727666459,8.44,145.73,145.7,3.4324]
[1728727666666,8.44,145.73,145.71,5.14183356]
[1728727666856,8.44,145.73,145.72,5.14183356]
[1728727669363,11.8716,145.74,145.72,5.14183356]
[1728727669562,11.8716,145.74,145.73,5.14183356]
[1728727673775,11.8716,145.74,145.7,3.4324]
[1728727673966,11.8716,145.74,145.71,5.14299398]
[1728727674168,11.8716,145.74,145.72,5.14299398]
[1728727674470,11.8716,145.74,145.73,5.14299398]
[1728727674671,11.8716,145.74,145.7,3.4324]
[1728727674865,11.8716,145.74,145.71,5.14339442]
[1728727675074,11.8716,145.74,145.72,5.14339442]
[1728727675372,11.8716,145.74,145.73,5.14339442]
[1728727677376,11.8716,145.74,145.7,3.4324]
[1728727677571,11.8716,145.74,145.71,5.14378048]
[1728727677771,11.8716,145.74,145.72,5.14378048]
[1728727677973,11.8716,145.74,145.73,5.14378048]
[1728727680573,11.8716,145.74,145.7,3.4324]
[1728727680773,11.8716,145.74,145.71,5.14464851]
[1728727681077,11.8716,145.74,145.72,5.14464851]
[1728727681280,11.8716,145.74,145.73,5.14464851]
[1728727683265,11.8716,145.74,145.7,3.4325]
[1728727683266,8.44,145.74,145.7,3.4325]
[1728727683468,3.4319,145.73,145.7,3.4325]
[1728727683977,3.4319,145.73,145.71,5.14590233]
[1728727684280,3.4319,145.73,145.72,5.14590233]
[1728727686784,3.4319,145.73,145.7,3.4325]
[1728727687180,3.4319,145.73,145.71,5.14786592]
[1728727687483,3.4319,145.73,145.72,5.14786592]
[1728727690678,3.4319,145.73,145.72,5.14939127]
[1728727694183,3.4319,145.73,145.7,11.8725]
[1728727694383,3.4319,145.73,145.71,5.14954048]
[1728727694586,3.4319,145.73,145.7,11.8725]
[1728727694886,3.4319,145.73,145.71,5.14968596]
[1728727695089,3.4319,145.73,145.72,5.14968596]
[1728727701193,3.4319,145.73,145.72,5.14917089]
[1728727705496,3.4319,145.73,145.7,3.4325]
[1728727705698,3.4319,145.73,145.72,5.14938836]
[1728727705997,3.4319,145.73,145.7,3.4325]
[1728727706191,3.4319,145.73,145.71,5.14940658]
[1728727706401,3.4319,145.73,145.72,5.14940658]
[1728727706794,0.12502,145.79,145.72,5.14940658]
[1728727707099,8.44,145.74,145.73,5.14940658]
[1728727708387,11.8716,145.74,145.73,5.14940658]
[1728727709197,11.8716,145.74,145.71,3.4321]
[1728727709492,11.8716,145.74,145.72,5.14946956]
[1728727709696,11.8716,145.74,145.73,5.14946956]
[1728727712999,11.8716,145.74,145.71,3.4321]
[1728727713299,11.8716,145.74,145.72,5.14962775]
[1728727713494,11.8716,145.74,145.73,5.14962775]
[1728727717104,11.8716,145.74,145.73,5.14976357]
[1728727717301,3.4316,145.74,145.73,5.14974222]
[1728727717497,11.8716,145.74,145.73,5.14974222]
[1728727717799,11.8716,145.74,145.73,10.29953228]
[1728727717997,11.8716,145.74,145.73,5.14979006]
[1728727724411,11.8716,145.74,145.71,3.4321]
[1728727724706,84.46722581,145.75,145.72,8.58241589]
[1728727724707,87.89862581,145.75,145.72,8.58241589]
[1728727724912,87.89862581,145.75,145.73,5.15041589]
[1728727725106,87.89862581,145.75,145.74,5.15041589]
[1728727726013,96.33862581,145.75,145.74,5.15041589]
[1728727728309,96.33862581,145.75,145.72,3.432]
[1728727728502,96.33862581,145.75,145.73,5.1499504]
[1728727728702,96.33862581,145.75,145.74,5.14996255]
[1728727732219,96.33862581,145.75,145.72,3.432]
[1728727732419,96.33862581,145.75,145.73,5.14916032]
[1728727732723,96.33862581,145.75,145.74,5.14916032]
[1728727736422,96.33862581,145.75,145.72,3.432]
[1728727736722,96.33862581,145.75,145.73,5.14879947]
[1728727736918,96.33862581,145.75,145.74,5.14879947]
[1728727740731,96.33862581,145.75,145.72,3.432]
[1728727740925,96.33862581,145.75,145.73,5.14890567]
[1728727741124,96.33862581,145.75,145.74,5.14890567]
[1728727743132,96.33862581,145.75,145.72,3.432]
[1728727743337,96.33862581,145.75,145.73,5.14908376]
[1728727743534,96.33862581,145.75,145.74,5.14908376]
[1728727747143,96.33862581,145.75,145.72,3.432]
[1728727747340,96.33862581,145.75,145.73,5.14840734]
[1728727747534,96.33862581,145.75,145.74,5.14840734]
[1728727751640,96.33862581,145.75,145.72,3.432]
[1728727751849,96.33862581,145.75,145.74,5.14835285]
[1728727755245,96.33862581,145.75,145.72,3.432]
[1728727755452,96.33862581,145.75,145.73,5.1483166]
[1728727755645,96.33862581,145.75,145.74,5.1483166]
[1728727758953,96.33862581,145.75,145.72,3.432]
[1728727759150,96.33862581,145.75,145.73,5.14775833]
[1728727759352,96.33862581,145.75,145.74,5.14775833]
[1728727762952,96.33862581,145.75,145.72,3.432]
[1728727763148,96.33862581,145.75,145.74,5.14756859]
[1728727763356,96.33862581,145.75,145.74,5.14759456]
[1728727766758,96.33862581,145.75,145.72,3.432]
[1728727767054,96.33862581,145.75,145.73,5.14766839]
[1728727767354,96.33862581,145.75,145.74,5.14766839]
[1728727768654,3.4314,145.75,145.74,5.14766839]
[1728727768854,11.8714,145.75,145.74,5.14766839]
[1728727770753,11.8714,145.75,145.72,3.432]
[1728727771056,11.8714,145.75,145.73,5.14770216]
[1728727771253,11.8714,145.75,145.74,5.14770216]
[1728727774559,11.8714,145.75,145.72,3.432]
[1728727774761,11.8714,145.75,145.73,5.14777277]
[1728727774956,0.12502,145.79,145.74,5.14777277]
[1728727775159,3.4309,145.77,145.74,12.06998291]
[1728727775359,8.44,145.77,145.75,5.14777277]
[1728727775658,8.44,145.77,145.76,5.14777277]
[1728727776163,11.871,145.77,145.74,6.88651813]
[1728727776361,3.431,145.77,145.76,5.1459654]
[1728727776559,8.44,145.76,145.74,6.88651813]
[1728727776755,8.44,145.76,145.75,5.14535954]
[1728727778470,8.44,145.76,145.74,6.88651813]
[1728727778766,8.44,145.76,145.75,5.14467522]
[1728727780463,11.8711,145.76,145.75,5.14467522]
[1728727782055,11.8711,145.76,145.72,3.432]
[1728727782462,11.8711,145.76,145.73,5.1442176]
[1728727782760,11.8711,145.76,145.74,5.1442176]
[1728727782958,11.8711,145.76,145.75,5.1442176]
[1728727785770,11.8711,145.76,145.71,8.44]
[1728727785970,11.8711,145.76,145.73,3.4318]
[1728727786470,11.8711,145.76,145.74,5.14369597]
[1728727786672,11.8711,145.76,145.75,5.14369597]
[1728727792180,8.44,145.76,145.75,5.14369597]
[1728727793176,8.44,145.76,145.74,6.87506335]
[1728727793384,8.44,145.76,145.75,5.14324209]
[1728727797088,8.44,145.76,145.74,3.4316]
[1728727797281,8.44,145.76,145.75,5.14265133]
[1728727798985,11.8711,145.76,145.75,5.14265133]
[1728727800586,8.44,145.76,145.72,3.432]
[1728727800787,8.44,145.74,145.72,3.432]
[1728727800985,8.44,145.74,145.73,5.14378632]
[1728727802390,8.44,145.76,145.73,8.57558632]
[1728727802592,8.44,145.76,145.74,5.14378632]
[1728727802793,8.44,145.76,145.75,5.14378632]
[1728727803393,11.8711,145.76,145.75,5.14378632]
[1728727803889,11.8711,145.76,145.73,3.4318]
[1728727804086,3.4311,145.76,145.75,5.14343622]
[1728727804289,11.8711,145.76,145.73,3.4318]
[1728727804493,11.8711,145.76,145.74,5.14340557]
[1728727804687,11.8711,145.76,145.75,5.14340557]
[1728727805588,3.4311,145.76,145.75,5.14340557]
[1728727806090,8.44,145.77,145.75,5.14340557]
[1728727806286,11.871,145.77,145.76,5.14340557]
[1728727807294,11.871,145.77,145.73,3.4318]
[1728727807697,8.44,145.77,145.74,5.14344009]
[1728727807895,3.4311,145.76,145.74,10.28688018]
[1728727808196,8.44,145.78,145.75,5.14344009]
[1728727808397,0.12502,145.79,145.76,5.14344009]
[1728727808595,0.12502,145.79,145.77,5.14344009]
[1728727808893,0.12502,145.79,145.78,5.14344009]
[1728727809092,0.12502,145.79,145.74,5.14344009]
[1728727809093,3.4312,145.76,145.74,5.14344009]
[1728727809291,8.44,145.75,145.74,5.14344009]
[1728727810091,11.8712,145.76,145.74,5.14344009]
[1728727810287,8.44,145.76,145.74,5.14344009]
[1728727815702,3.431,145.77,145.74,5.14344009]
[1728727816799,3.431,145.77,145.72,11.2853]
[1728727817002,3.431,145.77,145.74,3.4316]
[1728727817402,11.871,145.77,145.74,3.4316]
[1728727819907,11.871,145.77,145.73,3.4317]
[1728727821210,11.871,145.77,145.74,5.07272408]
[1728727821411,11.871,145.77,145.73,3.4317]
[1728727821612,11.871,145.77,145.74,5.0726816]
[1728727821911,11.871,145.77,145.75,5.0726816]
[1728727822109,11.871,145.77,145.76,5.0726816]
[1728727822311,3.55542,145.79,145.76,5.0726816]
[1728727822610,0.12502,145.79,145.77,5.0726816]
[1728727822798,8.44,145.78,145.75,3.4312]
[1728727823003,8.44,145.78,145.76,5.06951915]
[1728727823206,8.44,145.78,145.77,5.06951915]
[1728727824408,11.8706,145.78,145.77,5.06951915]
[1728727828608,11.8706,145.78,145.77,5.06116389]
[1728727830318,8.44,145.78,145.77,5.06116389]
[1728727835714,8.44,145.78,145.76,3.4311]
[1728727835917,8.44,145.78,145.77,5.05697761]
[1728727836314,8.44,145.78,145.76,3.4311]
[1728727836511,8.44,145.78,145.77,5.05692921]
[1728727836716,8.44,145.78,145.76,3.4311]
[1728727837021,8.44,145.78,145.77,5.05700348]
[1728727839622,11.8706,145.78,145.77,5.05700348]
[1728727846633,11.8706,145.78,145.74,6.77923924]
[1728727846833,8.44,145.77,145.75,5.05913275]
[1728727847027,8.44,145.77,145.76,5.05913275]